fUST/lending_fUST_20250222
["ID","MTS","AMOUNT","RATE_DAILY","PERIOD"]
[353966911,1740169843781,-500.0,0.00013863,2]
[353966913,1740169843789,-151.0,0.00013863,2]
[353966915,1740169843799,-500.0,0.00013863,2]
[353966917,1740169843807,-500.0,0.00013863,2]
[353966919,1740169843816,-500.0,0.00013863,2]
[353966921,1740169843826,-500.0,0.00013863,2]
[353966923,1740169843835,-151.0,0.00013863,2]
[353966925,1740169843845,-151.0,0.00013863,2]
[353966927,1740169843854,-500.0,0.00013863,2]
[353966929,1740169843864,-501.18957131,0.00013863,2]
[353966931,1740169843874,-500.0,0.00013863,2]
[353966932,1740169843884,-562.91,0.00013863,2]
[353966934,1740169843894,-177.276953,0.00013863,2]
[353966937,1740169843904,-500.0,0.00013863,2]
[353966938,1740169843913,-500.0,0.00013863,2]
[353966940,1740169843924,-500.0,0.00013863,2]
[353966942,1740169843934,-500.0,0.00013863,2]
[353966944,1740169843943,-500.0,0.00013863,2]
[353966947,1740169843953,-500.0,0.00013863,2]
[353966949,1740169843962,-500.0,0.00013863,2]
[353966959,1740169844054,-500.0,0.00013863,2]
[353966961,1740169844065,-500.0,0.00013863,2]
[353966963,1740169844075,-500.0,0.00013863,2]
[353966965,1740169844084,-500.0,0.00013863,2]
[353966967,1740169844094,-3065.21,0.00013863,2]
[353966969,1740169844103,-500.0,0.00013863,2]
[353966971,1740169844113,-447.01958492,0.00013863,2]
[353966973,1740169844122,-349.07280046,0.00013863,2]
[353966975,1740169844132,-500.0,0.00013863,2]
[353966977,1740169844141,-500.0,0.00013863,2]
[353966979,1740169844150,-500.0,0.00013863,2]
[353966981,1740169844160,-151.0,0.000139,2]
[353966983,1740169844170,-500.0,0.00013944,2]
[353966985,1740169844179,-500.0,0.00013944,2]
[353966987,1740169844188,-571.23,0.00013944,2]
[353966989,1740169844197,-4884.29,0.00013944,2]
[353966991,1740169844207,-500.0,0.00013944,2]
[353966993,1740169844217,-500.0,0.00013945,2]
[353966995,1740169844229,-351.42230915,0.00013945,2]
[353966997,1740169844238,-500.0,0.00013945,2]
[353966999,1740169844247,-500.0,0.00013945,2]
[353967000,1740169844256,-336.40940848,0.00013945,2]
[353967003,1740169844265,-594.66375078,0.00013945,2]
[353967004,1740169844275,-500.0,0.00013945,2]
[353967006,1740169844285,-500.0,0.00013945,2]
[353967009,1740169844295,-500.0,0.00013945,2]
[353967010,1740169844304,-500.0,0.00013945,2]
[353967013,1740169844313,-500.0,0.00013945,2]
[353967015,1740169844323,-507.24,0.00013945,2]
[353967017,1740169844332,-500.0,0.00013945,2]
[353967019,1740169844345,-500.0,0.00013945,2]
[353967021,1740169844355,-515.12839617,0.00013945,2]
[353967022,1740169844364,-500.0,0.00013945,2]
[353967025,1740169844373,-500.0,0.00013945,2]
[353967027,1740169844384,-500.0,0.00013945,2]
[353967028,1740169844394,-500.0,0.00013945,2]
[353967030,1740169844403,-500.0,0.00013945,2]
[353967033,1740169844412,-500.0,0.00013945,2]
[353967035,1740169844422,-500.0,0.00013945,2]
[353967036,1740169844431,-500.0,0.00013945,2]
[353967038,1740169844440,-151.0,0.00013945,2]
[353967040,1740169844449,-500.0,0.00013945,2]
[353967042,1740169844458,-500.0,0.00013945,2]
[353967044,1740169844467,-500.0,0.00013945,2]
[353967047,1740169844480,-500.0,0.00013945,2]
[353967049,1740169844490,-155.21165728,0.00013945,2]
[353967051,1740169844504,-344.78834272,0.00013945,2]
[353967053,1740169844515,-151.0,0.00013945,2]
[353967055,1740169844524,-500.0,0.00013945,2]
[353967057,1740169844533,-500.0,0.00013945,2]
[353967059,1740169844543,-291.25,0.00013945,2]
[353967061,1740169844553,-500.0,0.00013945,2]
[353967063,1740169844563,-500.0,0.00013945,2]
[353967065,1740169844573,-500.0,0.00013945,2]
[353967067,1740169844584,-500.0,0.00013945,2]
[353967069,1740169844594,-1249.66,0.00013945,2]
[353967071,1740169844603,-369.22,0.00013945,2]
[353967073,1740169844612,-2804.28,0.00013945,2]
[353967075,1740169844623,-500.0,0.00013945,2]
[353967078,1740169844632,-969.37,0.00013945,2]
[353967079,1740169844641,-500.0,0.00013945,2]
[353967082,1740169844651,-500.0,0.00013945,2]
[353967083,1740169844661,-500.0,0.00013945,2]
[353967085,1740169844670,-500.0,0.00013945,2]
[353967087,1740169844680,-500.0,0.00013945,2]
[353967089,1740169844689,-989.05,0.00013945,2]
[353967091,1740169844698,-500.0,0.00013945,2]
[353967093,1740169844707,-500.0,0.00013945,2]
[353967095,1740169844716,-500.0,0.00013945,2]
[353967098,1740169844727,-500.0,0.00013945,2]
[353967099,1740169844736,-500.0,0.00013945,2]
[353967101,1740169844746,-500.0,0.00013945,2]
[353967104,1740169844755,-500.0,0.00013945,2]
[353967106,1740169844764,-500.0,0.00013945,2]
[353967108,1740169844773,-535.57991587,0.00013945,2]
[353967110,1740169844782,-500.0,0.00013945,2]
[353967112,1740169844791,-500.0,0.00013945,2]
[353967114,1740169844800,-500.0,0.00013945,2]
[353967116,1740169844810,-500.0,0.00013945,2]
[353967117,1740169844819,-500.0,0.00013945,2]
[353967119,1740169844828,-500.0,0.00013945,2]
[353967121,1740169844838,-500.0,0.00013945,2]
[353967123,1740169844848,-562.91,0.00013945,2]
[353967125,1740169844857,-500.0,0.00013945,2]
[353967127,1740169844867,-500.0,0.00013945,2]
[353967129,1740169844876,-500.0,0.00013945,2]
[353967131,1740169844885,-500.0,0.00013945,2]
[353967134,1740169844896,-500.0,0.00013945,2]
[353967136,1740169844906,-500.0,0.00013945,2]
[353967138,1740169844915,-565.31,0.00013945,2]
[353967140,1740169844924,-500.0,0.00013945,2]
[353967142,1740169844933,-500.0,0.00013945,2]
[353967144,1740169844942,-500.0,0.00013945,2]
[353967146,1740169844951,-3065.21,0.00013945,2]
[353967148,1740169844962,-500.0,0.00013945,2]
[353967150,1740169844971,-500.0,0.00013945,2]
[353967152,1740169844981,-406.85361087,0.00013945,2]
[353967154,1740169844990,-4884.29,0.0001396,2]
[353967156,1740169845002,-7438.69753278,0.0001396,2]
[353967158,1740169845012,-151.0,0.00014,2]
[353967160,1740169845022,-151.0,0.00014,2]
[353967162,1740169845032,-151.0,0.00014009,2]
[353967164,1740169845042,-151.0,0.00014009,2]
[353967166,1740169845051,-865.26816982,0.00014009,2]
[353967168,1740169845061,-865.26816982,0.00014009,2]
[353967170,1740169845071,-865.26816982,0.00014009,2]
[353967172,1740169845080,-865.26816982,0.00014009,2]
[353967174,1740169845090,-865.26816982,0.00014009,2]
[353967176,1740169845100,-865.26816982,0.00014009,2]
[353967178,1740169845110,-865.26816982,0.00014009,2]
[353967180,1740169845119,-865.26816982,0.00014009,2]
[353967182,1740169845128,-865.26816982,0.00014009,2]
[353967184,1740169845137,-865.26816982,0.00014009,2]
[353967186,1740169845147,-865.26816982,0.00014009,2]
[353967188,1740169845156,-865.26816982,0.00014009,2]
[353967190,1740169845165,-865.26816982,0.00014009,2]
[353967192,1740169845174,-865.26816982,0.00014009,2]
[353967194,1740169845184,-865.26816982,0.00014009,2]
[353967196,1740169845193,-865.26816982,0.00014009,2]
[353967198,1740169845202,-865.26816982,0.00014009,2]
[353967200,1740169845211,-865.26816982,0.00014009,2]
[353967202,1740169845220,-865.26816982,0.00014009,2]
[353967204,1740169845231,-865.26,0.00014009,2]
[353967206,1740169845240,-381.2574156,0.00014009,2]
[353967208,1740169845250,-381.2574156,0.00014009,2]
[353967210,1740169845259,-381.2574156,0.00014009,2]
[353967212,1740169845268,-381.2574156,0.00014009,2]
[353967214,1740169845277,-381.2574156,0.00014009,2]
[353967216,1740169845287,-381.2574156,0.00014009,2]
[353967218,1740169845297,-381.2574156,0.00014009,2]
[353967220,1740169845306,-381.2574156,0.00014009,2]
[353967222,1740169845317,-381.2574156,0.00014009,2]
[353967224,1740169845327,-381.2574156,0.00014009,2]
[353967226,1740169845337,-381.2574156,0.00014009,2]
[353967228,1740169845347,-381.2574156,0.00014009,2]
[353967230,1740169845357,-381.2574156,0.00014009,2]
[353967232,1740169845367,-381.2574156,0.00014009,2]
[353967234,1740169845377,-381.2574156,0.00014009,2]
[353967236,1740169845386,-381.2574156,0.00014009,2]
[353967238,1740169845395,-381.2574156,0.00014009,2]
[353967240,1740169845404,-381.2574156,0.00014009,2]
[353967242,1740169845413,-381.2574156,0.00014009,2]
[353967244,1740169845422,-381.25,0.00014009,2]
[353967246,1740169845431,-212.91944449,0.00014009,2]
[353967248,1740169845441,-212.91944449,0.00014009,2]
[353967250,1740169845450,-212.91944449,0.00014009,2]
[353967252,1740169845459,-212.91944449,0.00014009,2]
[353967254,1740169845469,-212.91944449,0.00014009,2]
[353967256,1740169845480,-212.91944449,0.00014009,2]
[353967258,1740169845489,-212.91944449,0.00014009,2]
[353967260,1740169845499,-212.91944449,0.00014009,2]
[353967262,1740169845508,-212.91944449,0.00014009,2]
[353967264,1740169845517,-212.91944449,0.00014009,2]
[353967266,1740169845526,-212.91944449,0.00014009,2]
[353967268,1740169845536,-212.91944449,0.00014009,2]
[353967270,1740169845545,-212.91944449,0.00014009,2]
[353967273,1740169845555,-212.91944449,0.00014009,2]
[353967275,1740169845564,-212.91944449,0.00014009,2]
[353967278,1740169845577,-212.91944449,0.00014009,2]
[353967281,1740169845586,-212.91944449,0.00014009,2]
[353967284,1740169845595,-212.91944449,0.00014009,2]
[353967287,1740169845605,-212.91944449,0.00014009,2]
[353967289,1740169845615,-212.91,0.00014009,2]
[353967292,1740169845624,-4884.29,0.00014025,2]
[353967296,1740169845633,-500.0,0.00014026,2]
[353967299,1740169845642,-571.23,0.00014026,2]
[353967301,1740169845653,-4884.29,0.00014026,2]
[353967303,1740169845663,-500.0,0.00014026,2]
[353967305,1740169845672,-500.0,0.00014027,2]
[353967307,1740169845682,-500.0,0.00014027,2]
[353967310,1740169845691,-500.0,0.00014027,2]
[353967313,1740169845700,-500.0,0.00014027,2]
[353967316,1740169845710,-500.0,0.00014027,2]
[353967318,1740169845719,-500.0,0.00014027,2]
[353967321,1740169845729,-500.0,0.00014027,2]
[353967325,1740169845738,-500.0,0.00014027,2]
[353967327,1740169845748,-500.0,0.00014027,2]
[353967329,1740169845757,-377.69806669,0.00014027,2]
[353967331,1740169845766,-616.68,0.00014027,2]
[353967333,1740169845776,-500.0,0.00014027,2]
[353967335,1740169845786,-500.0,0.00014027,2]
[353967338,1740169845796,-500.0,0.00014027,2]
[353967339,1740169845806,-500.0,0.00014027,2]
[353967342,1740169845817,-500.0,0.00014027,2]
[353967344,1740169845826,-500.0,0.00014027,2]
[353967346,1740169845835,-500.0,0.00014027,2]
[353967348,1740169845845,-1249.66,0.00014027,2]
[353967349,1740169845854,-2804.28,0.00014027,2]
[353967351,1740169845864,-500.0,0.00014027,2]
[353967361,1740169845945,-969.37,0.00014027,2]
[353967363,1740169845955,-500.0,0.00014027,2]
[353967365,1740169845965,-627.26,0.00014027,2]
[353967367,1740169845975,-500.0,0.00014027,2]
[353967370,1740169845984,-500.0,0.00014027,2]
[353967372,1740169845994,-989.05,0.00014027,2]
[353967373,1740169846004,-500.0,0.00014027,2]
[353967375,1740169846014,-500.0,0.00014027,2]
[353967377,1740169846023,-500.0,0.00014027,2]
[353967380,1740169846033,-500.0,0.00014027,2]
[353967382,1740169846042,-500.0,0.00014027,2]
[353967384,1740169846052,-500.0,0.00014027,2]
[353967386,1740169846062,-500.0,0.00014027,2]
[353967388,1740169846071,-500.0,0.00014027,2]
[353967390,1740169846080,-151.0,0.00014027,2]
[353967392,1740169846090,-151.0,0.00014027,2]
[353967394,1740169846099,-500.0,0.00014027,2]
[353967396,1740169846108,-151.0,0.00014027,2]
[353967398,1740169846118,-500.0,0.00014027,2]
[353967400,1740169846127,-500.0,0.00014027,2]
[353967402,1740169846136,-500.0,0.00014027,2]
[353967403,1740169846145,-500.0,0.00014027,2]
[353967406,1740169846155,-562.91,0.00014027,2]
[353967408,1740169846164,-500.0,0.00014027,2]
[353967409,1740169846174,-500.0,0.00014027,2]
[353967412,1740169846183,-500.0,0.00014027,2]
[353967414,1740169846192,-500.0,0.00014027,2]
[353967416,1740169846202,-577.17,0.00014027,2]
[353967418,1740169846211,-3065.21,0.00014027,2]
[353967420,1740169846220,-500.0,0.00014027,2]
[353967422,1740169846231,-500.0,0.00014027,2]
[353967424,1740169846240,-168.96222635,0.00014043,2]
[353967426,1740169846250,-2118.41247155,0.00014086,2]
[353967428,1740169846259,-151.0,0.000141,2]
[353967430,1740169846269,-4884.29,0.00014108,2]
[353967432,1740169846278,-500.0,0.00014109,2]
[353967434,1740169846287,-500.0,0.00014109,2]
[353967436,1740169846296,-500.0,0.00014109,2]
[353967438,1740169846306,-500.0,0.00014109,2]
[353967440,1740169846316,-500.0,0.00014109,2]
[353967442,1740169846326,-500.0,0.00014109,2]
[353967444,1740169846336,-500.0,0.00014109,2]
[353967446,1740169846346,-500.0,0.00014109,2]
[353967448,1740169846355,-500.0,0.00014109,2]
[353967450,1740169846365,-500.0,0.00014109,2]
[353967452,1740169846375,-500.0,0.00014109,2]
[353967454,1740169846384,-500.0,0.00014109,2]
[353967456,1740169846393,-500.0,0.00014109,2]
[353967458,1740169846402,-500.0,0.00014109,2]
[353967460,1740169846411,-1249.66,0.00014109,2]
[353967462,1740169846420,-2804.28,0.00014109,2]
[353967464,1740169846430,-500.0,0.00014109,2]
[353967466,1740169846439,-969.37,0.00014109,2]
[353967468,1740169846448,-500.0,0.00014109,2]
[353967470,1740169846457,-500.0,0.00014109,2]
[353967472,1740169846466,-500.0,0.00014109,2]
[353967474,1740169846476,-500.0,0.00014109,2]
[353967476,1740169846485,-989.05,0.00014109,2]
[353967478,1740169846495,-500.0,0.00014109,2]
[353967480,1740169846504,-500.0,0.00014109,2]
[353967482,1740169846513,-500.0,0.00014109,2]
[353967484,1740169846522,-500.0,0.00014109,2]
[353967486,1740169846531,-500.0,0.00014109,2]
[353967488,1740169846540,-500.0,0.00014109,2]
[353967490,1740169846549,-500.0,0.00014109,2]
[353967492,1740169846558,-500.0,0.00014109,2]
[353967494,1740169846568,-344.38049377,0.00014109,2]
[353967496,1740169846577,-500.0,0.00014109,2]
[353967498,1740169846589,-500.0,0.00014109,2]
[353967500,1740169846598,-562.91,0.00014109,2]
[353967502,1740169846607,-500.0,0.00014109,2]
[353967504,1740169846618,-244.89,0.00014109,2]
[353967506,1740169846627,-500.0,0.00014109,2]
[353967508,1740169846636,-500.0,0.00014109,2]
[353967510,1740169846646,-3065.21,0.00014109,2]
[353967512,1740169846655,-500.0,0.00014109,2]
[353967514,1740169846666,-564.74719125,0.00014116,2]
[353967516,1740169846675,-644.58979787,0.00014139,2]
[353967518,1740169846685,-500.0,0.00014148,2]
[353967520,1740169846694,-500.0,0.00014148,2]
[353967522,1740169846703,-615.50901929,0.00014163,2]
[353967524,1740169846712,-500.0,0.00014164,2]
[353967526,1740169846722,-613.44,0.00014178,2]
[353967528,1740169846733,-151.0,0.00014178,2]
[353967530,1740169846743,-151.0,0.00014178,2]
[353967532,1740169846752,-151.0,0.00014178,2]
[353967534,1740169846762,-151.0,0.00014178,2]
[353967536,1740169846771,-571.23,0.00014178,2]
[353967538,1740169846781,-4884.29,0.00014186,2]
[353967540,1740169846791,-500.0,0.0001419,2]
[353967542,1740169846800,-500.0,0.00014191,2]
[353967544,1740169846809,-500.0,0.00014191,2]
[353967546,1740169846818,-500.0,0.00014191,2]
[353967548,1740169846828,-500.0,0.00014191,2]
[353967550,1740169846837,-500.0,0.00014191,2]
[353967553,1740169846846,-500.0,0.00014191,2]
[353967555,1740169846855,-500.0,0.00014191,2]
[353967557,1740169846865,-500.0,0.00014191,2]
[353967559,1740169846874,-500.0,0.00014191,2]
[353967561,1740169846886,-266.33176406,0.00014191,2]
[353967563,1740169846895,-500.0,0.00014191,2]
[353967565,1740169846904,-151.0,0.00014191,2]
[353967567,1740169846913,-500.0,0.00014191,2]
[353967569,1740169846923,-151.0,0.00014191,2]
[353967571,1740169846931,-500.0,0.00014191,2]
[353967573,1740169846940,-481.76602548,0.00014191,2]
[353967575,1740169846949,-1249.66,0.00014191,2]
[353967577,1740169846958,-2804.28,0.00014191,2]
[353967579,1740169846970,-500.0,0.00014191,2]
[353967581,1740169846979,-969.37,0.00014191,2]
[353967583,1740169846989,-500.0,0.00014191,2]
[353967585,1740169846998,-500.0,0.00014191,2]
[353967587,1740169847007,-500.0,0.00014191,2]
[353967589,1740169847017,-989.05,0.00014191,2]
[353967591,1740169847026,-500.0,0.00014191,2]
[353967593,1740169847035,-500.0,0.00014191,2]
[353967595,1740169847044,-500.0,0.00014191,2]
[353967597,1740169847053,-500.0,0.00014191,2]
[353967599,1740169847062,-421.53622704,0.00014191,2]
[353967601,1740169847071,-555.08480055,0.00014191,2]
[353967603,1740169847080,-500.0,0.00014191,2]
[353967605,1740169847089,-500.0,0.00014191,2]
[353967607,1740169847098,-500.0,0.00014191,2]
[353967609,1740169847107,-500.0,0.00014191,2]
[353967611,1740169847117,-562.91,0.00014191,2]
[353967612,1740169847126,-500.0,0.00014191,2]
[353967613,1740169847135,-500.0,0.00014191,2]
[353967614,1740169847144,-500.0,0.00014191,2]
[353967615,1740169847153,-3065.21,0.00014191,2]
[353967616,1740169847162,-304.07,0.00014191,2]
[353967617,1740169847171,-64644.65615804,0.00014199,2]
[353967618,1740169847181,-151.0,0.00014199,2]
[353967619,1740169847190,-500.0,0.00014221,2]
[353967620,1740169847200,-567.75020572,0.00014266,2]
[353967621,1740169847209,-571.23,0.00014272,2]
[353967622,1740169847218,-4884.29,0.00014272,2]
[353967623,1740169847227,-500.0,0.00014273,2]
[353967624,1740169847236,-500.0,0.00014273,2]
[353967625,1740169847245,-500.0,0.00014273,2]
[353967626,1740169847254,-500.0,0.00014273,2]
[353967627,1740169847264,-500.0,0.00014273,2]
[353967628,1740169847272,-634.18,0.00014273,2]
[353967629,1740169847281,-500.0,0.00014273,2]
[353967630,1740169847291,-500.0,0.00014273,2]
[353967631,1740169847301,-500.0,0.00014273,2]
[353967633,1740169847310,-500.0,0.00014273,2]
[353967634,1740169847319,-500.0,0.00014273,2]
[353967636,1740169847328,-500.0,0.00014273,2]
[353967638,1740169847338,-1249.66,0.00014273,2]
[353967640,1740169847347,-2804.28,0.00014273,2]
[353967642,1740169847357,-360.41844163,0.00014273,2]
[353967644,1740169847366,-969.37,0.00014273,2]
[353967646,1740169847376,-500.0,0.00014273,2]
[353967648,1740169847385,-500.0,0.00014273,2]
[353967650,1740169847395,-218.99572632,0.00014273,2]
[353967653,1740169847410,-281.00427368,0.00014273,2]
[353967655,1740169847419,-989.05,0.00014273,2]
[353967657,1740169847428,-500.0,0.00014273,2]
[353967659,1740169847437,-500.0,0.00014273,2]
[353967661,1740169847446,-500.0,0.00014273,2]
[353967663,1740169847455,-500.0,0.00014273,2]
[353967665,1740169847464,-500.0,0.00014273,2]
[353967667,1740169847473,-500.0,0.00014273,2]
[353967669,1740169847483,-500.0,0.00014273,2]
[353967671,1740169847492,-500.0,0.00014273,2]
[353967673,1740169847502,-562.91,0.00014273,2]
[353967675,1740169847511,-500.0,0.00014273,2]
[353967677,1740169847520,-500.0,0.00014273,2]
[353967679,1740169847529,-500.0,0.00014273,2]
[353967681,1740169847538,-2087.29988739,0.00014273,2]
[353967683,1740169847549,-977.91011261,0.00014273,2]
[353967685,1740169847558,-500.0,0.00014356,2]
[353967694,1740169847569,-278.36,0.00014356,2]
[353967696,1740169847646,-416.99164361,0.00014356,2]
[353967698,1740169847655,-213.98572517,0.00014356,2]
[353967700,1740169847664,-454.81761899,0.00014356,2]
[353967702,1740169847674,-500.0,0.00014356,2]
[353967704,1740169847683,-500.0,0.00014356,2]
[353967706,1740169847692,-500.0,0.00014356,2]
[353967708,1740169847701,-500.0,0.00014356,2]
[353967710,1740169847710,-500.0,0.00014356,2]
[353967712,1740169847719,-500.0,0.00014356,2]
[353967714,1740169847729,-579.37972937,0.00014356,2]
[353967716,1740169847741,-670.28027063,0.00014356,2]
[353967718,1740169847750,-2804.28,0.00014356,2]
[353967720,1740169847759,-969.37,0.00014356,2]
[353967722,1740169847769,-489.31758336,0.00014356,2]
[353967737,1740169847897,-500.0,0.00013698,2]
[353967739,1740169847906,-500.0,0.00013698,2]
[353967741,1740169847916,-500.93227476,0.00013698,2]
[353967743,1740169847925,-500.0,0.0001378,2]
[353967745,1740169847934,-500.0,0.00013863,2]
[353967747,1740169847943,-500.0,0.00013945,2]
[353967749,1740169847953,-10.68241664,0.00014356,2]
[353967751,1740169847962,-500.0,0.00014356,2]
[353967753,1740169847972,-500.0,0.00014356,2]
[353967755,1740169847982,-989.05,0.00014356,2]
[353967757,1740169847992,-500.0,0.00014356,2]
[353967759,1740169848001,-463.46,0.00014356,2]
[353967761,1740169848010,-500.0,0.00014356,2]
[353967763,1740169848019,-500.0,0.00014356,2]
[353967765,1740169848029,-500.0,0.00014356,2]
[353967767,1740169848038,-500.0,0.00014356,2]
[353967769,1740169848047,-500.0,0.00014356,2]
[353967771,1740169848056,-492.25,0.00014356,2]
[353967773,1740169848066,-562.91,0.00014356,2]
[353967775,1740169848076,-406.09337191,0.00014356,2]
[353967777,1740169848085,-500.0,0.00014356,2]
[353967779,1740169848094,-500.0,0.00014356,2]
[353967781,1740169848103,-3065.21,0.00014356,2]
[353967783,1740169848113,-4884.29,0.00014359,2]
[353967785,1740169848122,-4884.29,0.00014359,2]
[353967787,1740169848131,-4884.29,0.00014359,2]
[353967789,1740169848140,-4884.29,0.00014359,2]
[353967791,1740169848149,-4884.41642846,0.00014359,2]
[353967793,1740169848158,-151.0,0.00014359,2]
[353967795,1740169848167,-151.0,0.00014359,2]
[353967797,1740169848177,-151.0,0.00014359,2]
[353967799,1740169848187,-24900.0,0.0001436,2]
[353967801,1740169848197,-301.74,0.00014438,2]
[353967803,1740169848206,-500.0,0.00014438,2]
[353967805,1740169848217,-518.65,0.00014438,2]
[353967807,1740169848228,-500.0,0.00014438,2]
[353967809,1740169848238,-500.0,0.00014438,2]
[353967811,1740169848248,-500.0,0.00014438,2]
[353967813,1740169848257,-1249.66,0.00014438,2]
[353967815,1740169848267,-2804.28,0.00014438,2]
[353967817,1740169848277,-969.37,0.00014438,2]
[353967819,1740169848287,-500.0,0.00014438,2]
[353967821,1740169848297,-500.0,0.00014438,2]
[353967823,1740169848306,-188.98,0.00014438,2]
[353967825,1740169848316,-989.05,0.00014438,2]
[353967827,1740169848326,-500.0,0.00014438,2]
[353967829,1740169848336,-623.5,0.00014438,2]
[353967830,1740169848347,-500.0,0.00014438,2]
[353967832,1740169848356,-500.0,0.00014438,2]
[353967834,1740169848366,-500.0,0.00014438,2]
[353967836,1740169848376,-500.0,0.00014438,2]
[353967838,1740169848386,-562.91,0.00014438,2]
[353967840,1740169848395,-500.0,0.00014438,2]
[353967842,1740169848405,-500.0,0.00014438,2]
[353967844,1740169848415,-3065.21,0.00014438,2]
[353967846,1740169848425,-564.74719125,0.00014473,2]
[353967848,1740169848435,-500.0,0.0001452,2]
[353967850,1740169848444,-500.0,0.0001452,2]
[353967852,1740169848454,-500.0,0.0001452,2]
[353967854,1740169848463,-500.0,0.0001452,2]
[353967856,1740169848472,-1249.66,0.0001452,2]
[353967858,1740169848486,-2804.28,0.0001452,2]
[353967860,1740169848496,-969.37,0.0001452,2]
[353967862,1740169848506,-645.96,0.0001452,2]
[353967864,1740169848515,-500.0,0.0001452,2]
[353967866,1740169848525,-989.05,0.0001452,2]
[353967868,1740169848534,-500.0,0.0001452,2]
[353967870,1740169848544,-500.0,0.0001452,2]
[353967872,1740169848553,-500.0,0.0001452,2]
[353967874,1740169848562,-595.47,0.0001452,2]
[353967876,1740169848573,-500.0,0.0001452,2]
[353967878,1740169848583,-151.0,0.0001452,2]
[353967880,1740169848595,-562.91,0.0001452,2]
[353967882,1740169848606,-367.72,0.0001452,2]
[353967884,1740169848615,-500.0,0.0001452,2]
[353967886,1740169848626,-3065.21,0.0001452,2]
[353967888,1740169848635,-280.956,0.00014543,2]
[353967890,1740169848645,-500.0,0.00014571,2]
[353967892,1740169848655,-324.08,0.00014602,2]
[353967894,1740169848664,-500.0,0.00014602,2]
[353967896,1740169848674,-151.0,0.00014602,2]
[353967898,1740169848684,-500.0,0.00014602,2]
[353967900,1740169848693,-151.0,0.00014602,2]
[353967902,1740169848702,-500.0,0.00014602,2]
[353967904,1740169848711,-1249.66,0.00014602,2]
[353967906,1740169848721,-2804.28,0.00014602,2]
[353967908,1740169848733,-969.37,0.00014602,2]
[353967910,1740169848743,-500.0,0.00014602,2]
[353967912,1740169848753,-989.05,0.00014602,2]
[353967914,1740169848763,-500.0,0.00014602,2]
[353967916,1740169848772,-500.0,0.00014602,2]
[353967918,1740169848781,-500.0,0.00014602,2]
[353967920,1740169848790,-562.91,0.00014602,2]
[353967922,1740169848800,-643.93,0.00014602,2]
[353967924,1740169848810,-3065.21,0.00014602,2]
[353967926,1740169848819,-151.0,0.00014684,2]
[353967928,1740169848828,-151.0,0.00014684,2]
[353967930,1740169848838,-151.0,0.00014684,2]
[353967932,1740169848847,-151.0,0.00014684,2]
[353967934,1740169848857,-500.0,0.00014684,2]
[353967936,1740169848868,-500.0,0.00014684,2]
[353967938,1740169848877,-293.44,0.00014684,2]
[353967940,1740169848887,-1249.66,0.00014684,2]
[353967942,1740169848897,-2804.28,0.00014684,2]